bitfinex-derivatives/quotes_SOLF0:USTF0_20250520
["timestamp","ask_amount","ask_price","bid_price","bid_amount"]
[1747752025075,0.04141662,166.08,166.07,7.52484647]
[1747752025764,0.04141662,166.08,166.07,1.50514647]
[1747752026168,10.15477722,166.08,166.04,0.03822633]
[1747752026374,6.0205,166.05,166.04,0.03822633]
[1747752028376,0.04141662,166.08,166.04,0.03822633]
[1747752030069,6.0203,166.06,166.04,0.03822633]
[1747752030278,0.04141662,166.08,166.04,0.03822633]
[1747752030679,6.0203,166.06,166.04,0.03822633]
[1747752030869,0.04141662,166.08,166.04,0.03822633]
[1747752032377,0.04141662,166.08,166.06,6.0201]
[1747752032571,0.04141662,166.08,166.06,71.1401]
[1747752032878,0.04141662,166.08,166.06,65.12]
[1747752033080,0.04141662,166.08,166.06,71.14]
[1747752033468,0.04141662,166.08,166.06,65.12]
[1747752035476,0.04141662,166.08,166.05,65.12]
[1747752036277,0.04141662,166.08,166.06,6.0199]
[1747752036678,0.04141662,166.08,166.07,6.0197]
[1747752039477,0.04141662,166.08,166.07,7.52486967]
[1747752042778,6.0165,166.16,166.13,6.0174]
[1747752043083,75.2333606,166.22,166.12,65.12]
[1747752043282,75.2333606,166.22,166.13,65.12]
[1747752043579,10.1133606,166.19,166.08,6.0288]
[1747752043783,0.04440178,166.15,166.12,0.04491816]
[1747752044479,6.0178,166.13,166.12,0.04491816]
[1747752045885,1.99650178,166.15,166.12,0.04491816]
[1747752045886,6.0173,166.14,166.12,0.04491816]
[1747752046286,0.04440178,166.15,166.12,0.04491816]
[1747752046486,6.0176,166.13,166.12,0.04491816]
[1747752048989,6.06160178,166.15,166.12,0.04491816]
[1747752049801,6.06160178,166.15,166.12,6.06271816]
[1747752050092,0.04440178,166.15,166.12,0.04491816]
[1747752050690,6.0176,166.13,166.12,0.04491816]
[1747752051088,0.04440178,166.15,166.12,0.04491816]
[1747752051487,0.04440178,166.15,166.12,6.06271816]
[1747752051995,6.0172,166.14,166.12,6.06271816]
[1747752052292,0.04440178,166.15,166.12,0.04491816]
[1747752052593,0.04440178,166.15,166.13,65.12]
[1747752052794,0.04440178,166.15,166.14,6.0172]
[1747752058208,0.04440178,166.15,166.13,71.1374]
[1747752059201,0.04440178,166.15,166.14,6.0172]
[1747752060710,0.04440178,166.15,166.13,65.12]
[1747752060901,0.04440178,166.15,166.12,0.04491816]
[1747752061406,6.0176,166.13,166.12,0.04491816]
[1747752063406,6.0187,166.1,166.09,1.50478191]
[1747752063608,10.1133606,166.15,166.05,66.03087588]
[1747752063808,10.1133606,166.15,166.06,6.0199]
[1747752064002,10.1133606,166.15,166.05,66.03087588]
[1747752064310,10.1133606,166.15,166.07,6.0195]
[1747752064508,6.0188,166.1,166.09,0.04269567]
[1747752067611,0.0452101,166.13,166.09,0.04269567]
[1747752067808,0.0452101,166.13,166.09,6.06149567]
[1747752068211,6.0181,166.12,166.09,6.06149567]
[1747752068512,0.0452101,166.13,166.09,0.04269567]
[1747752069011,6.0187,166.1,166.09,0.04269567]
[1747752071712,6.0208,166.04,166.03,65.04]
[1747752072211,2.0714,166.09,166.03,65.04]
[1747752072413,6.0207,166.05,166.03,65.04]
[1747752072714,0.04030298,166.06,166.03,65.04]
[1747752072909,6.06040298,166.06,166.04,6.0206]
[1747752073309,0.04030298,166.06,166.04,6.0205]
[1747752073511,0.04030298,166.06,166.03,65.04]
[1747752073911,6.0208,166.04,166.03,65.04]
[1747752074301,0.04030298,166.06,166.02,0.04451255]
[1747752074502,6.0212,166.03,166.02,0.04451255]
[1747752076713,10.15366358,166.06,166.02,0.04451255]
[1747752077519,6.0209,166.04,166.02,0.04451255]
[1747752077816,10.15366358,166.06,166.02,0.04451255]
[1747752078716,6.0212,166.03,166.02,0.04451255]
[1747752079110,10.15366358,166.06,166.02,0.04451255]
[1747752079614,10.15366358,166.06,166.03,6.0209]
[1747752080511,10.15366358,166.06,166.02,6.06591255]
[1747752080718,10.15366358,166.06,166.02,0.04451255]
[1747752082619,6.0207,166.05,166.02,6.06591255]
[1747752083621,0.04030298,166.06,166.02,0.04451255]
[1747752084120,0.04030298,166.06,166.05,6.0205]
[1747752084712,75.1933606,166.15,166.1,6.0185]
[1747752084918,79.2034606,166.15,166.06,65.08]
[1747752085418,69.0901,166.15,166.06,65.08]
[1747752085718,75.1072,166.15,166.09,0.04457529]
[1747752085927,0.03878849,166.12,166.11,6.0181]
[1747752086222,0.03878849,166.12,166.09,0.04457529]
[1747752086822,6.05688849,166.12,166.09,0.04457529]
[1747752088828,6.0185,166.11,166.09,0.04457529]
[1747752090022,6.0187,166.1,166.09,0.04457529]
[1747752090826,6.0184,166.11,166.09,0.04457529]
[1747752091126,0.03878849,166.12,166.09,0.04457529]
[1747752091823,6.0187,166.1,166.09,0.04457529]
[1747752095131,10.15214909,166.12,166.04,1.50514222]
[1747752095321,6.0205,166.05,166.04,1.50514222]
[1747752095521,10.1133606,166.06,165.99,65.97087588]
[1747752095724,6.0223,166.0,165.99,65.97087588]
[1747752095922,6.0223,166.0,165.99,0.99087588]
[1747752096833,6.0223,166.0,165.98,0.03815731]
[1747752097129,6.0226,165.99,165.98,0.03815731]
[1747752098527,6.0241,165.96,165.93,65.0]
[1747752098834,12.1557606,166.0,165.93,65.0]
[1747752099128,6.0243,165.95,165.91,6.0255]
[1747752099631,6.06305045,165.95,165.91,6.0691829]
[1747752099831,0.03875045,165.95,165.92,6.0252]
[1747752100024,0.03875045,165.95,165.91,0.0436829]
[1747752100719,0.03875045,165.95,165.93,6.0247]
[1747752101632,6.06285045,165.95,165.92,6.0251]
[1747752101836,0.03875045,165.95,165.92,6.0251]
[1747752102035,0.03875045,165.95,165.91,0.0436829]
[1747752102238,0.03875045,165.95,165.94,6.0245]
[1747752102937,71.0217,166.02,165.94,65.0]
[1747752103333,6.0217,166.02,165.94,65.0]
[1747752103935,0.03956469,166.0,165.96,0.04165109]
[1747752104130,0.03956469,166.0,165.97,6.0233]
[1747752104437,0.03956469,166.0,165.96,0.04165109]
[1747752104635,0.03956469,166.0,165.98,6.0228]
[1747752105042,6.06186469,166.0,165.96,0.04165109]
[1747752105438,0.03956469,166.0,165.96,0.04165109]
[1747752106041,0.03956469,166.0,165.99,6.0226]
[1747752106932,0.03956469,166.0,165.96,0.04165109]
[1747752107240,6.06186469,166.0,165.96,0.04165109]
[1747752107440,0.03956469,166.0,165.96,0.04165109]
[1747752107938,0.03956469,166.0,165.98,6.0228]
[1747752108139,0.03956469,166.0,165.96,0.04165109]
[1747752109933,6.0228,165.99,165.96,0.04165109]
[1747752110135,0.03956469,166.0,165.96,0.04165109]
[1747752111242,6.0234,165.97,165.96,0.04165109]
[1747752113340,10.1133606,165.97,165.92,1.50589781]
[1747752113645,6.0248,165.93,165.92,1.50589781]
[1747752114451,6.0252,165.92,165.91,0.04068608]
[1747752117735,6.0249,165.93,165.91,0.04068608]
[1747752119047,6.06347129,165.94,165.91,6.06618608]
[1747752119247,0.03887129,165.94,165.91,0.04068608]
[1747752119744,6.0248,165.93,165.91,0.04068608]
[1747752120450,0.03887129,165.94,165.91,0.04068608]
[1747752121149,6.025,165.93,165.91,0.04068608]
[1747752121754,6.025,165.93,165.91,6.06618608]
[1747752122550,0.03887129,165.94,165.92,6.0252]
[1747752122743,0.03887129,165.94,165.91,0.04068608]
[1747752123747,6.0251,165.93,165.91,0.04068608]
[1747752123952,0.03887129,165.94,165.91,0.04068608]
[1747752124747,6.06357129,165.94,165.91,0.04068608]
[1747752124951,6.06357129,165.94,165.91,6.06598608]
[1747752125151,0.03887129,165.94,165.91,0.04068608]
[1747752125751,64.97887129,165.94,165.91,0.04068608]
[1747752125952,1.9513,165.93,165.91,0.04068608]
[1747752126152,6.0252,165.92,165.91,0.04068608]
[1747752126854,7.9763,165.93,165.91,0.04068608]
[1747752127057,64.97887129,165.94,165.91,0.04068608]
[1747752127348,0.03887129,165.94,165.91,0.04068608]
[1747752127747,0.03887129,165.94,165.93,6.0248]
[1747752128056,0.03887129,165.94,165.93,70.9848]
[1747752128357,2.0231,166.0,165.93,64.96]
[1747752128551,68.9951,166.02,165.93,64.96]
[1747752128958,6.0224,166.0,165.97,6.023]
[1747752129151,68.9951,166.02,165.93,64.96]
[1747752129551,0.04126491,165.99,165.96,0.04623171]
[1747752130358,0.04126491,165.99,165.98,6.023]
[1747752130953,0.04126491,165.99,165.97,6.0232]
[1747752131152,0.04126491,165.99,165.96,0.04623171]
[1747752132469,6.06416491,165.99,165.96,6.06973171]
[1747752132757,0.04126491,165.99,165.96,0.04623171]
[1747752133150,0.04126491,165.99,165.98,6.023]
[1747752133346,0.04126491,165.99,165.96,0.04623171]
[1747752134149,0.04126491,165.99,165.97,6.0234]
[1747752134762,0.04126491,165.99,165.98,6.023]
[1747752135262,547.0215,166.07,166.04,6.0206]
[1747752135263,6.0199,166.07,166.04,6.0206]
[1747752135654,6.0199,166.07,166.02,64.94]
[1747752135963,122.75939461,166.08,166.05,6.0204]
[1747752136162,122.8005488,166.08,166.05,0.04621612]
[1747752136358,116.7810488,166.08,166.05,0.04621612]
[1747752137063,6.02,166.07,166.05,0.04621612]
[1747752137267,116.7810488,166.08,166.05,0.04621612]
[1747752137659,6.0201,166.06,166.05,0.04621612]
[1747752137853,64.94,166.07,165.95,3.04227588]
[1747752138054,1.916,166.05,165.95,67.98227588]
[1747752138764,0.04610541,166.02,165.98,0.04174046]
[1747752139467,6.0229,165.99,165.98,0.04174046]
[1747752139772,0.04610541,166.02,165.98,0.04174046]
[1747752140672,6.0227,165.99,165.98,0.04174046]
[1747752143277,6.0224,166.0,165.98,0.04174046]
[1747752143677,0.04610541,166.02,165.98,0.04174046]
[1747752143978,6.0226,165.99,165.98,0.04174046]
[1747752145874,0.04610541,166.02,165.98,0.04174046]
[1747752146879,0.04610541,166.02,166.0,6.0221]
[1747752147579,6.06780541,166.02,165.99,6.0226]
[1747752147777,0.04610541,166.02,165.98,0.04174046]
[1747752148179,0.04610541,166.02,165.99,6.0226]
[1747752148381,0.04610541,166.02,165.98,0.04174046]
[1747752150076,6.0227,165.99,165.98,0.04174046]
[1747752151063,6.0223,166.0,165.98,0.04174046]
[1747752151268,66.77940541,166.02,165.98,0.04174046]
[1747752152278,6.0226,166.0,165.98,0.04174046]
[1747752152781,6.0221,166.01,165.98,0.04174046]
[1747752153081,6.0221,166.01,165.98,6.06454046]
[1747752153383,6.0224,166.0,165.98,0.04174046]
[1747752153877,6.0221,166.01,165.98,0.04174046]
[1747752154068,6.0221,166.01,165.98,6.06464046]
[1747752154774,0.04610541,166.02,165.98,0.04174046]
[1747752154775,6.0223,166.0,165.98,0.04174046]
[1747752155779,6.0227,165.99,165.98,0.04174046]
[1747752157078,6.0225,166.0,165.98,0.04174046]
[1747752157577,6.06770541,166.02,166.0,6.0222]
[1747752158079,6.06770541,166.02,165.98,0.04174046]
[1747752158282,6.06770541,166.02,165.99,6.0225]
[1747752158875,0.04610541,166.02,166.01,6.0219]
[1747752159577,0.04610541,166.02,165.98,0.04174046]
[1747752160080,6.06780541,166.02,165.99,6.0224]
[1747752160279,6.06780541,166.02,165.98,0.04174046]
[1747752160578,6.06780541,166.02,165.99,6.0224]
[1747752161781,0.04610541,166.02,165.98,6.06454046]
[1747752162279,6.0221,166.01,165.98,6.06454046]
[1747752162482,0.04610541,166.02,165.99,6.0226]
[1747752162683,0.04610541,166.02,165.98,0.04174046]
[1747752162983,0.04610541,166.02,166.0,6.0221]
[1747752163282,0.04610541,166.02,165.98,0.04174046]
[1747752164082,6.06780541,166.02,165.98,0.04174046]
[1747752164477,0.04610541,166.02,165.98,0.04174046]
[1747752165281,0.04610541,166.02,165.98,1.54772536]
[1747752165484,6.0226,166.0,165.98,7.57072536]
[1747752165879,6.0227,165.99,165.98,1.54772536]
[1747752166485,6.0227,165.99,165.98,0.04174046]
[1747752166685,6.0225,166.0,165.98,0.04174046]
[1747752167086,0.04610541,166.02,165.98,0.04174046]
[1747752167682,0.04610541,166.02,165.98,6.06464046]
[1747752167884,6.022,166.01,165.98,6.06464046]
[1747752168181,6.022,166.01,165.98,0.04174046]
[1747752168385,0.04610541,166.02,165.98,0.04174046]
[1747752168780,0.04610541,166.02,166.0,6.0221]
[1747752169087,0.04610541,166.02,165.98,0.04174046]
[1747752169288,0.04610541,166.02,165.98,6.06474046]
[1747752169882,6.022,166.01,165.98,6.06474046]
[1747752170489,6.0224,166.0,165.98,0.04174046]
[1747752170789,0.04610541,166.02,165.98,0.04174046]
[1747752171088,6.0227,165.99,165.98,0.04174046]
[1747752172492,6.0224,166.0,165.98,0.04174046]
[1747752173085,0.04610541,166.02,165.98,0.04174046]
[1747752173689,6.06790541,166.02,165.99,6.0224]
[1747752174193,6.0223,166.0,165.99,1.50597325]
[1747752174988,6.0227,165.99,165.98,0.04174046]
[1747752176895,6.0242,165.95,165.93,6.0246]
[1747752177596,6.0239,165.96,165.94,6.0244]
[1747752177788,6.0239,165.96,165.93,0.04101213]
[1747752178193,0.04207174,165.97,165.94,1.50625567]
[1747752178893,0.04207174,165.97,165.95,6.0241]
[1747752179497,0.04207174,165.97,165.94,1.50625567]
[1747752179688,0.04207174,165.97,165.93,0.04101213]
[1747752180091,0.04207174,165.97,165.95,6.0238]
[1747752180395,6.06557174,165.97,165.93,0.04101213]
[1747752180597,0.04207174,165.97,165.95,6.0238]
[1747752180793,0.04207174,165.97,165.93,0.04101213]
[1747752181498,0.04207174,165.97,165.96,6.0237]
[1747752181699,0.04207174,165.97,165.96,70.7437]
[1747752182584,0.04207174,165.97,165.96,72.24958985]
[1747752186199,0.04207174,165.97,165.96,66.22588985]
[1747752186802,0.04207174,165.97,165.96,72.24958985]
[1747752192309,1.916,166.05,166.01,6.0217]
[1747752192510,1.944,166.06,166.01,6.0217]
[1747752192712,1.944,166.06,166.0,64.72]
[1747752193112,1.944,166.06,166.01,1.50588985]
[1747752193500,0.04173798,166.05,166.02,0.04548222]
[1747752194308,0.04173798,166.05,166.04,6.0208]
[1747752194509,0.04173798,166.05,166.04,70.7408]
[1747752195322,0.04173798,166.05,166.04,72.24668985]
[1747752198124,3.798e-05,166.05,166.04,72.24668985]
[1747752202918,3.798e-05,166.05,166.04,1.50588985]
[1747752203122,6.02053798,166.05,166.04,1.50588985]
[1747752204530,6.02053798,166.05,166.02,0.04548222]
[1747752204731,6.02053798,166.05,166.02,6.06688222]
[1747752205525,3.798e-05,166.05,166.02,0.04548222]
[1747752206132,3.798e-05,166.05,166.03,6.0209]
[1747752206330,3.798e-05,166.05,166.02,0.04548222]
[1747752208130,3.798e-05,166.05,166.04,6.0208]
[1747752208334,3.798e-05,166.05,166.02,0.04548222]
[1747752208737,3.798e-05,166.05,166.03,6.0211]
[1747752209332,3.798e-05,166.05,166.04,70.6008]
[1747752210633,3.798e-05,166.05,166.04,72.10626262]
[1747752213944,3.798e-05,166.05,166.04,70.6008]
[1747752217139,3.798e-05,166.05,166.04,72.1059171]
[1747752220947,3.798e-05,166.05,166.04,70.6008]
[1747752223850,3.798e-05,166.05,166.04,72.10591474]
[1747752232055,9.9661,166.13,166.04,66.08511474]
[1747752232244,3.9484,166.13,166.04,66.08511474]
[1747752232443,3.9484,166.13,166.11,6.018]
[1747752233056,3.9484,166.13,166.1,0.04184529]
[1747752234053,6.0182,166.12,166.1,0.04184529]
[1747752234951,9.9661,166.13,166.1,6.06034529]
[1747752235258,3.9484,166.13,166.1,0.04184529]
[1747752235657,3.9484,166.13,166.11,6.0181]
[1747752237859,3.9484,166.13,166.1,6.06034529]
[1747752239063,6.0177,166.13,166.11,6.0182]
[1747752239463,0.04183795,166.14,166.11,6.0182]
[1747752239762,6.05923795,166.14,166.11,6.0182]
[1747752240764,0.04183795,166.14,166.1,0.04184529]
[1747752241063,0.04183795,166.14,166.11,1.50478162]
[1747752241853,0.04183795,166.14,166.13,6.0176]
[1747752242564,0.04183795,166.14,166.13,7.52238162]
[1747752242963,74.54518164,166.25,166.18,6.0155]
[1747752243163,5.8312,166.23,166.16,64.42]
[1747752243965,0.04031731,166.21,166.18,0.04004953]
[1747752244560,6.05531731,166.21,166.18,0.04004953]
[1747752245063,0.04031731,166.21,166.18,6.05574953]
[1747752245268,0.04031731,166.21,166.18,0.04004953]
[1747752245562,6.0151,166.2,166.18,0.04004953]
[1747752245968,0.04031731,166.21,166.18,0.04004953]
[1747752246261,6.05521731,166.21,166.18,6.05574953]
[1747752246766,0.04031731,166.21,166.18,0.04004953]
[1747752247667,0.04031731,166.21,166.19,6.0151]
[1747752248166,0.04031731,166.21,166.2,6.015]
[1747752248667,6.0135,166.25,166.21,6.0144]
[1747752249556,6.05157986,166.25,166.22,6.0142]
[1747752249863,0.03807986,166.25,166.22,6.0142]
[1747752250070,0.03807986,166.25,166.24,6.0136]
[1747752250361,0.03807986,166.25,166.24,70.4136]
[1747752250964,7.986e-05,166.25,166.24,70.4136]
[1747752254360,7.986e-05,166.25,166.24,6.0136]
[1747752254565,7.986e-05,166.25,166.24,64.4]
[1747752256169,7.986e-05,166.25,166.24,70.4136]
[1747752259378,7.986e-05,166.25,166.24,64.4]
[1747752260266,6.01327986,166.25,166.24,64.4]
[1747752260466,7.986e-05,166.25,166.21,590.27959954]
[1747752260671,7.986e-05,166.25,166.21,0.04509954]
[1747752261078,7.986e-05,166.25,166.21,6.05969954]
[1747752261463,7.986e-05,166.25,166.21,0.04509954]
[1747752262173,6.01357986,166.25,166.22,6.0141]
[1747752262371,6.01357986,166.25,166.21,0.04509954]
[1747752262676,6.01357986,166.25,166.22,6.0141]
[1747752262870,6.01357986,166.25,166.21,0.04509954]
[1747752263176,6.01357986,166.25,166.22,6.0141]
[1747752263979,6.0136,166.24,166.21,6.05959954]
[1747752264178,7.986e-05,166.25,166.21,0.04509954]
[1747752264578,7.986e-05,166.25,166.23,6.0139]
[1747752265977,7.986e-05,166.25,166.21,0.04509954]
[1747752266276,6.01337986,166.25,166.22,6.0142]
[1747752266478,7.986e-05,166.25,166.21,0.04509954]
[1747752266673,6.014,166.23,166.21,0.04509954]
[1747752266867,7.986e-05,166.25,166.21,0.04509954]
[1747752268079,7.986e-05,166.25,166.22,6.0142]
[1747752268380,7.986e-05,166.25,166.21,0.04509954]
[1747752270480,6.01357986,166.25,166.22,6.014]
[1747752271182,6.0137,166.24,166.22,6.014]
[1747752271381,6.0137,166.24,166.21,6.05959954]
[1747752272181,6.0137,166.24,166.22,6.0143]
[1747752272579,6.0137,166.24,166.21,6.05959954]
[1747752272781,6.01337986,166.25,166.21,0.04509954]
[1747752273278,7.986e-05,166.25,166.23,6.0139]
[1747752273481,7.986e-05,166.25,166.21,0.04509954]
[1747752273982,7.986e-05,166.25,166.24,6.0136]
[1747752276984,7.986e-05,166.25,166.23,6.0138]
[1747752277280,7.986e-05,166.25,166.21,0.04509954]
[1747752277483,6.0138,166.24,166.21,6.05959954]
[1747752277885,6.014,166.23,166.21,6.05959954]
[1747752278484,6.014,166.23,166.21,0.04509954]
[1747752279281,6.0143,166.22,166.21,0.04509954]
[1747752283187,6.0141,166.23,166.21,0.04509954]
[1747752283983,12.0035,166.24,166.21,0.04509954]
[1747752284184,5.9897,166.24,166.21,6.05969954]
[1747752284492,12.0035,166.24,166.21,6.05969954]
[1747752284685,2.0407,166.24,166.23,6.014]
[1747752284990,2.0407,166.24,166.21,0.04509954]
[1747752285375,2.0407,166.24,166.22,6.0141]
[1747752285885,6.014,166.23,166.21,0.04509954]
[1747752286187,2.0407,166.24,166.21,0.04509954]
[1747752287089,6.0143,166.22,166.21,0.04509954]
[1747752287790,6.0142,166.23,166.21,0.04509954]
[1747752288494,6.014,166.23,166.21,0.04509954]
[1747752288989,6.0143,166.22,166.21,0.04509954]
[1747752290284,2.0407,166.24,166.21,0.04509954]
[1747752291390,1.9277,166.23,166.21,0.04509954]
[1747752293096,7.9417,166.23,166.21,0.04509954]
[1747752294693,64.28007986,166.25,166.21,0.04509954]
[1747752294898,7.986e-05,166.25,166.21,0.04509954]
[1747752295393,6.01367986,166.25,166.22,6.0141]
[1747752295592,7.986e-05,166.25,166.22,6.0141]
[1747752296490,7.986e-05,166.25,166.23,6.0139]
[1747752297296,7.986e-05,166.25,166.21,0.04509954]
[1747752298495,7.986e-05,166.25,166.24,6.0136]
[1747752299399,7.986e-05,166.25,166.23,6.0138]
[1747752300496,7.986e-05,166.25,166.24,6.0136]
[1747752301095,7.986e-05,166.25,166.24,70.2336]
[1747752302194,7.986e-05,166.25,166.24,7.5171321]
[1747752302400,7.986e-05,166.25,166.24,1.5035321]
[1747752303093,7.986e-05,166.25,166.24,6.0136]
[1747752304498,7.986e-05,166.25,166.23,6.0139]
[1747752304802,7.986e-05,166.25,166.22,64.22]
[1747752305098,6.01347986,166.25,166.22,70.2342]
[1747752305899,7.986e-05,166.25,166.22,70.2342]
[1747752306099,7.986e-05,166.25,166.22,64.22]
[1747752306498,7.986e-05,166.25,166.23,6.0137]
[1747752308495,7.986e-05,166.25,166.24,6.0136]
[1747752308694,7.986e-05,166.25,166.21,64.26509954]
[1747752309003,7.986e-05,166.25,166.24,6.0136]
[1747752309903,7.986e-05,166.25,166.24,7.51714337]
[1747752311500,7.986e-05,166.25,166.23,6.0138]
[1747752311704,7.986e-05,166.25,166.21,64.26509954]
[1747752312300,7.986e-05,166.25,166.24,6.0136]
[1747752314999,6.01347986,166.25,166.21,64.26509954]
[1747752315194,7.986e-05,166.25,166.21,64.26509954]
[1747752315394,7.986e-05,166.25,166.24,1.5035664]
[1747752315807,7.986e-05,166.25,166.24,7.5171664]
[1747752324015,7.986e-05,166.25,166.24,71.7371664]
[1747752324518,7.986e-05,166.25,166.24,1.5035664]
[1747752324817,7.986e-05,166.25,166.23,6.0138]
[1747752325019,7.986e-05,166.25,166.21,65.25597542]
[1747752325618,6.0138,166.24,166.21,71.27057542]
[1747752325812,6.0138,166.24,166.21,65.25597542]
[1747752326215,7.986e-05,166.25,166.21,65.25597542]
[1747752326617,7.986e-05,166.25,166.21,64.26509954]
[1747752327126,7.986e-05,166.25,166.23,6.0137]
[1747752327328,7.986e-05,166.25,166.21,64.26509954]
[1747752327921,7.986e-05,166.25,166.23,6.0137]
[1747752328425,7.986e-05,166.25,166.22,1.50358801]
[1747752329229,6.0137,166.24,166.22,1.50358801]
[1747752329425,6.0137,166.24,166.21,70.27959954]
[1747752329426,6.0137,166.24,166.23,1.50358801]
[1747752330327,6.0137,166.24,166.21,70.27959954]
[1747752330530,7.986e-05,166.25,166.22,6.0142]
[1747752331028,6.01347986,166.25,166.22,6.0142]
[1747752331930,7.986e-05,166.25,166.21,64.26509954]
[1747752332522,7.986e-05,166.25,166.24,6.0136]
[1747752333329,7.986e-05,166.25,166.24,7.51713683]
[1747752334222,7.986e-05,166.25,166.24,1.50353683]
[1747752335731,7.986e-05,166.25,166.24,6.0136]
[1747752337129,7.986e-05,166.25,166.23,6.0137]
[1747752337334,7.986e-05,166.25,166.22,10.12518164]
[1747752337719,7.986e-05,166.25,166.24,6.0136]
[1747752337922,7.986e-05,166.25,166.21,70.39299954]
[1747752338130,7.986e-05,166.25,166.21,0.04509954]
[1747752338430,7.986e-05,166.25,166.21,64.20509954]
[1747752338733,6.01337986,166.25,166.21,64.20509954]
[1747752338925,6.01337986,166.25,166.22,1.50366641]
[1747752339235,6.01337986,166.25,166.23,6.0139]
[1747752340133,6.01337986,166.25,166.22,7.51786641]
[1747752340334,6.01337986,166.25,166.22,6.0142]
[1747752341032,6.0136,166.24,166.21,70.21969954]
[1747752341237,6.0136,166.24,166.21,6.05969954]
[1747752341424,6.0136,166.24,166.21,0.04509954]
[1747752341728,6.01347986,166.25,166.22,6.0141]
[1747752341930,7.986e-05,166.25,166.21,0.04509954]
[1747752342128,7.986e-05,166.25,166.24,6.0136]
[1747752343135,7.986e-05,166.25,166.24,7.51715327]
[1747752343335,7.986e-05,166.25,166.24,1.50355327]
[1747752344035,7.986e-05,166.25,166.24,6.0136]
[1747752347736,7.986e-05,166.25,166.24,7.51690137]
[1747752350745,1.9772,166.34,166.24,1.50330137]
[1747752350945,1.9772,166.34,166.25,65.66330137]
[1747752351145,6.0106,166.33,166.3,6.0112]
[1747752351345,1.9772,166.34,166.29,64.16]
[1747752351542,0.04318676,166.33,166.31,6.011]
[1747752351745,0.04318676,166.33,166.3,64.20313949]
[1747752352244,11.13430555,166.38,166.31,10.12518164]
[1747752352434,11.13430555,166.38,166.34,10.12518164]
[1747752352639,1.9959,166.46,166.37,10.12518164]
[1747752353037,1.9959,166.46,166.38,0.0387549]
[1747752353243,0.04574697,166.42,166.39,64.14]
[1747752354644,6.0078,166.4,166.38,0.0387549]
[1747752354846,0.04574697,166.42,166.38,0.0387549]
[1747752355647,6.0082,166.39,166.38,0.0387549]
[1747752357344,6.0075,166.41,166.38,0.0387549]
[1747752357949,6.0075,166.41,166.38,6.0470549]
[1747752358250,6.05294697,166.42,166.38,0.0387549]
[1747752358842,0.04574697,166.42,166.39,6.0079]
[1747752359045,0.04574697,166.42,166.38,0.0387549]
[1747752359444,6.05314697,166.42,166.38,6.0470549]
[1747752359642,6.05314697,166.42,166.38,0.0387549]
[1747752360146,6.05314697,166.42,166.39,6.008]
[1747752360352,0.04574697,166.42,166.38,0.0387549]
[1747752360851,0.04574697,166.42,166.39,6.0081]
[1747752361245,0.04574697,166.42,166.38,0.0387549]
[1747752361447,0.04574697,166.42,166.39,64.06]
[1747752361853,0.04574697,166.42,166.4,6.0078]
[1747752362246,0.04574697,166.42,166.39,64.06]
[1747752362450,0.04574697,166.42,166.4,6.0076]
[1747752363649,0.04574697,166.42,166.41,6.0075]
[1747752365153,0.04574697,166.42,166.39,64.06]
[1747752366656,0.04574697,166.42,166.41,6.0075]
[1747752367552,6.0585,166.51,166.46,6.0054]
[1747752367949,6.0585,166.51,166.37,2.037]
[1747752368149,10.12518164,166.49,166.38,64.06]
[1747752368354,0.0211884,166.45,166.42,0.03904032]
[1747752368548,0.0211884,166.45,166.42,64.09904032]
[1747752368748,0.0211884,166.45,166.44,6.0061]
[1747752369155,0.0211884,166.45,166.42,64.09904032]
[1747752369353,0.0211884,166.45,166.42,0.03904032]
[1747752369754,6.0271884,166.45,166.42,6.04614032]
[1747752369956,6.0271884,166.45,166.42,0.03904032]
[1747752370751,0.0211884,166.45,166.42,0.03904032]
[1747752371154,0.0211884,166.45,166.44,6.0064]
[1747752374658,8.84e-05,166.45,166.44,6.0064]
[1747752381466,8.84e-05,166.45,166.43,64.02]
[1747752382656,8.84e-05,166.45,166.44,6.0064]
[1747752385658,2.0968,166.55,166.43,64.02]
[1747752385865,10.12518164,166.59,166.45,10.12518164]
[1747752386064,68.0279,166.65,166.55,6.0022]
[1747752386765,6.0012,166.59,166.58,0.04328]
[1747752387357,6.0,166.59,166.44,1.9443]
[1747752387562,4.0956,166.58,166.45,74.14518164]
[1747752387861,4.0956,166.58,166.48,10.12518164]
[1747752388160,4.0956,166.58,166.54,6.0024]
[1747752388363,4.13791307,166.58,166.54,70.04419167]
[1747752388766,4.13791307,166.58,166.54,0.04179167]
[1747752389262,4.13791307,166.58,166.46,1.5010286]
[1747752389263,6.0034,166.53,166.49,6.0043]
[1747752389460,4.0956,166.58,166.5,64.0]